bitfinex/quotes_BTCUSD_20250213
["timestamp","ask_amount","ask_price","bid_price","bid_amount"]
[1739427209303,0.00022387,96533.0,96532.0,5.40198665]
[1739427209511,0.00022387,96533.0,96532.0,4.97301465]
[1739427210369,0.00022387,96533.0,96532.0,5.86951465]
[1739427210988,0.00022387,96533.0,96532.0,5.86251465]
[1739427211262,0.00022387,96533.0,96532.0,5.86951465]
[1739427212307,0.00022387,96533.0,96532.0,5.85451465]
[1739427212515,0.00022387,96533.0,96532.0,5.86851465]
[1739427212798,0.00022387,96533.0,96532.0,5.87882175]
[1739427213120,0.00022387,96533.0,96532.0,5.86482175]
[1739427213505,0.00022387,96533.0,96532.0,5.87982175]
[1739427213923,0.00022387,96533.0,96532.0,5.86482175]
[1739427214541,0.00022387,96533.0,96532.0,5.85782175]
[1739427214959,0.00022387,96533.0,96532.0,5.85482175]
[1739427215166,0.00022387,96533.0,96532.0,5.84782175]
[1739427215374,0.00022387,96533.0,96532.0,5.86282175]
[1739427215578,0.00022387,96533.0,96532.0,3.82372665]
[1739427215787,0.00022387,96533.0,96532.0,3.70872665]
[1739427215997,0.00022387,96533.0,96532.0,3.87272665]
[1739427216200,0.00022387,96533.0,96532.0,4.02811465]
[1739427216378,0.00022387,96533.0,96532.0,4.02111465]
[1739427216578,0.00022387,96533.0,96532.0,4.01411465]
[1739427216779,0.00022387,96533.0,96532.0,4.02811465]
[1739427217180,0.00022387,96533.0,96532.0,4.11411465]
[1739427217414,0.00022387,96533.0,96532.0,2.00787165]
[1739427217632,0.00022387,96533.0,96532.0,4.52008665]
[1739427217836,0.00022387,96533.0,96532.0,4.51308665]
[1739427217971,0.00022387,96533.0,96532.0,4.52008665]
[1739427218586,0.00022387,96533.0,96532.0,4.52908665]
[1739427219653,0.00022387,96533.0,96532.0,6.02908665]
[1739427228107,0.00022387,96533.0,96532.0,3.51687165]
[1739427228484,0.00022387,96533.0,96532.0,6.02908665]
[1739427235359,0.00022387,96533.0,96532.0,5.87369865]
[1739427235920,0.00022387,96533.0,96532.0,6.02908665]
[1739427238433,0.00022387,96533.0,96532.0,5.87369865]
[1739427241382,0.00022387,96533.0,96532.0,6.02908665]
[1739427243379,0.00022387,96533.0,96532.0,3.51687165]
[1739427243663,0.00022387,96533.0,96532.0,6.02908665]
[1739427256963,0.00022387,96533.0,96532.0,3.51687165]
[1739427257172,0.00022387,96533.0,96532.0,6.02908665]
[1739427278055,0.00022387,96533.0,96532.0,4.171195]
[1739427278256,0.00022387,96533.0,96532.0,4.271195]
[1739427278409,0.00022387,96533.0,96532.0,3.624695]
[1739427278613,0.00022387,96533.0,96532.0,3.524695]
[1739427279001,0.15561087,96533.0,96532.0,3.374695]
[1739427279215,0.23361087,96533.0,96532.0,2.430698]
[1739427279427,0.23361087,96533.0,96532.0,2.061272]
[1739427279827,0.24312104,96533.0,96532.0,2.061272]
[1739427280037,0.24312104,96533.0,96532.0,2.052272]
[1739427280461,0.24312104,96533.0,96532.0,2.049272]
[1739427280679,0.24312104,96533.0,96532.0,2.054272]
[1739427281266,0.08773404,96533.0,96532.0,2.054272]
[1739427281508,0.07822387,96533.0,96532.0,2.054272]
[1739427282378,0.07822387,96533.0,96532.0,2.049272]
[1739427282761,0.23361087,96533.0,96532.0,2.054272]
[1739427283169,0.24311067,96533.0,96532.0,2.050272]
[1739427283598,0.24311067,96533.0,96532.0,2.053272]
[1739427287235,0.00972367,96533.0,96532.0,2.20866]
[1739427287465,0.00022387,96533.0,96532.0,2.053272]
[1739427287662,0.15561087,96533.0,96532.0,3.553272]
[1739427287869,0.00022387,96533.0,96532.0,2.053272]
[1739427288417,0.15561087,96533.0,96532.0,2.053272]
[1739427288970,0.16509667,96533.0,96532.0,2.053272]
[1739427290137,0.00970967,96533.0,96532.0,2.053272]
[1739427290369,0.00022387,96533.0,96532.0,2.053272]
[1739427292887,0.00022387,96533.0,96532.0,2.30866]
[1739427293301,0.00022387,96533.0,96532.0,2.41116365]
[1739427296342,0.00022387,96533.0,96532.0,2.95766365]
[1739427296571,0.00022387,96533.0,96532.0,1.75887165]
[1739427296888,0.00022387,96533.0,96532.0,4.80797565]
[1739427299837,0.00022387,96533.0,96532.0,4.81840408]
[1739427300191,0.00022387,96533.0,96532.0,4.96840408]
[1739427300372,0.00022387,96533.0,96532.0,5.13020408]
[1739427301020,0.00022387,96533.0,96532.0,6.63020408]
[1739427301619,0.00022387,96533.0,96532.0,6.62720408]
[1739427301873,0.00022387,96533.0,96532.0,6.62220408]
[1739427302087,0.00022387,96533.0,96532.0,6.64420408]
[1739427302621,0.00022387,96533.0,96532.0,5.92719108]
[1739427302799,0.00022387,96533.0,96532.0,5.74449408]
[1739427303000,0.00022387,96533.0,96532.0,5.75449408]
[1739427303197,0.00022387,96533.0,96532.0,5.74449408]
[1739427303632,0.00022387,96533.0,96532.0,5.72149408]
[1739427303819,0.00022387,96533.0,96532.0,5.73149408]
[1739427304912,0.00013208,96533.0,96532.0,5.75449408]
[1739427306477,0.00013208,96533.0,96532.0,5.90933408]
[1739427308197,0.00013208,96533.0,96532.0,5.90653408]
[1739427308403,0.00013208,96533.0,96532.0,3.74714008]
[1739427308605,0.00013208,96533.0,96532.0,6.36155008]
[1739427308817,0.00013208,96533.0,96532.0,5.70964308]
[1739427309015,0.00013208,96533.0,96532.0,4.13044308]
[1739427309312,0.00013208,96533.0,96532.0,3.812123]
[1739427309518,0.15551908,96533.0,96532.0,3.662523]
[1739427309729,0.15551908,96533.0,96532.0,3.116023]
[1739427310789,0.00017619,96533.0,96532.0,3.101023]
[1739427311001,0.00017619,96533.0,96532.0,3.261411]
[1739427311211,0.15556319,96533.0,96532.0,3.106023]
[1739427311412,0.15556319,96533.0,96532.0,2.951183]
[1739427311613,0.15556319,96533.0,96532.0,2.944183]
[1739427311834,0.15556319,96533.0,96532.0,2.949183]
[1739427312206,0.23876319,96533.0,96532.0,2.949183]
[1739427315985,0.23876319,96533.0,96532.0,2.944183]
[1739427316161,0.23876319,96533.0,96532.0,2.939183]
[1739427316363,0.23876319,96533.0,96532.0,2.941183]
[1739427317814,0.23876319,96533.0,96532.0,2.939183]
[1739427318241,0.23876319,96533.0,96532.0,2.944183]
[1739427318758,0.23876319,96533.0,96532.0,2.943183]
[1739427318958,0.23876319,96533.0,96532.0,2.946183]
[1739427319172,0.00017619,96533.0,96532.0,2.946183]
[1739427319579,0.00017619,96533.0,96532.0,2.942183]
[1739427319927,0.00017619,96533.0,96532.0,2.939183]
[1739427320337,0.15556319,96533.0,96532.0,2.939183]
[1739427320746,0.15556319,96533.0,96532.0,2.943183]
[1739427321361,0.00017619,96533.0,96532.0,2.949183]
[1739427321564,0.00017619,96533.0,96532.0,2.941183]
[1739427321765,0.15556319,96533.0,96532.0,2.939183]
[1739427321967,0.15556319,96533.0,96532.0,2.943183]
[1739427322222,0.15556319,96533.0,96532.0,2.942183]
[1739427322428,0.15556319,96533.0,96532.0,2.946183]
[1739427322632,0.15556319,96533.0,96532.0,2.943183]
[1739427322836,0.15556319,96533.0,96532.0,2.941183]
[1739427323196,0.15556319,96533.0,96532.0,2.939183]
[1739427324038,0.15556319,96533.0,96532.0,2.942183]
[1739427324446,0.23246319,96533.0,96532.0,2.942183]
[1739427324795,0.23246319,96533.0,96532.0,2.946183]
[1739427325397,0.23246319,96533.0,96532.0,2.942183]
[1739427325398,0.15556319,96533.0,96532.0,2.942183]
[1739427325614,0.15556319,96533.0,96532.0,2.9402895]
[1739427325812,0.15556319,96533.0,96532.0,2.9432895]
[1739427330607,0.00017619,96533.0,96532.0,3.0986775]
[1739427330814,0.00017619,96533.0,96532.0,2.9890895]
[1739427331400,0.15556319,96533.0,96532.0,2.9890895]
[1739427331602,0.15556319,96533.0,96532.0,2.9432895]
[1739427332657,0.00965889,96533.0,96532.0,2.9432895]
[1739427332963,0.15556319,96533.0,96532.0,0.8477865]
[1739427333190,0.16504589,96533.0,96532.0,5.8229585]
[1739427333498,0.16504589,96533.0,96532.0,5.4118795]
[1739427333623,0.15556319,96533.0,96532.0,4.5188635]
[1739427335217,0.15556319,96533.0,96532.0,4.0557505]
[1739427337422,0.15556319,96533.0,96532.0,4.0547505]
[1739427337653,0.15556319,96533.0,96532.0,4.0517505]
[1739427337874,0.15656319,96533.0,96532.0,4.0527505]
[1739427338272,0.15556319,96533.0,96532.0,4.0527505]
[1739427338480,0.15556319,96533.0,96532.0,3.0773385]
[1739427338693,0.15656319,96533.0,96532.0,3.0763385]
[1739427340286,0.15656319,96533.0,96532.0,2.8678365]
[1739427342186,0.15556319,96533.0,96532.0,2.8678365]
[1739427342374,0.15656319,96533.0,96532.0,2.8678365]
[1739427343388,0.15656319,96533.0,96532.0,2.8688365]
[1739427343575,0.15556319,96533.0,96532.0,2.8678365]
[1739427343959,0.15656319,96533.0,96532.0,2.8678365]
[1739427344534,0.15556319,96533.0,96532.0,2.8678365]
[1739427344816,0.15656319,96533.0,96532.0,2.8678365]
[1739427345155,0.15556319,96533.0,96532.0,2.8678365]
[1739427345359,0.15656319,96533.0,96532.0,2.8678365]
[1739427345791,0.15656319,96533.0,96532.0,0.5167865]
[1739427346125,0.1660393,96533.0,96532.0,0.5167865]
[1739427346322,0.15656319,96533.0,96532.0,0.5167865]
[1739427346563,0.15656319,96533.0,96532.0,3.7031385]
[1739427346767,0.15556319,96533.0,96532.0,3.6656735]
[1739427347098,0.15656319,96533.0,96532.0,3.6656735]
[1739427347534,0.15556319,96533.0,96532.0,3.6656735]
[1739427347893,0.15656319,96533.0,96532.0,3.6656735]
[1739427348496,0.15656319,96533.0,96532.0,3.6666735]
[1739427349234,0.15656319,96533.0,96532.0,3.6656735]
[1739427349773,0.15556319,96533.0,96532.0,3.6656735]
[1739427350197,0.15656319,96533.0,96532.0,3.6656735]
[1739427350573,0.15556319,96533.0,96532.0,3.6656735]
[1739427350830,0.15656319,96533.0,96532.0,2.8648045]
[1739427351011,0.15656319,96533.0,96532.0,2.8678045]
[1739427351218,0.25906684,96533.0,96532.0,2.8678045]
[1739427351536,0.26854137,96533.0,96532.0,2.8678045]
[1739427351869,0.26754137,96533.0,96532.0,2.8678045]
[1739427352049,0.26754137,96533.0,96532.0,2.8648045]
[1739427353005,0.26854137,96533.0,96532.0,2.8648045]
[1739427353410,0.26754137,96533.0,96532.0,2.8648045]
[1739427354014,0.26854137,96533.0,96532.0,2.8648045]
[1739427354535,0.26754137,96533.0,96532.0,2.8658045]
[1739427354792,0.26854137,96533.0,96532.0,2.8658045]
[1739427355143,0.26854137,96533.0,96532.0,2.8648045]
[1739427355555,0.26854137,96533.0,96532.0,2.8678045]
[1739427355776,0.26854137,96533.0,96532.0,2.8648045]
[1739427356153,0.26754137,96533.0,96532.0,2.8648045]
[1739427356562,0.26754137,96533.0,96532.0,2.8658045]
[1739427356882,0.26754137,96533.0,96532.0,2.8648045]
[1739427357202,0.26754137,96533.0,96532.0,0.5177865]
[1739427357339,0.26854137,96533.0,96532.0,4.3937765]
[1739427357540,0.25906684,96533.0,96532.0,3.1557975]
[1739427357800,0.26754137,96533.0,96532.0,3.1557975]
[1739427358103,0.26754137,96533.0,96532.0,3.1457015]
[1739427358300,0.26754137,96533.0,96532.0,3.14391926]
[1739427358517,0.26854137,96533.0,96532.0,3.14391926]
[1739427358917,0.26854137,96533.0,96532.0,3.14215339]
[1739427360060,0.26754137,96533.0,96532.0,3.14215339]
[1739427360464,0.26854137,96533.0,96532.0,3.14215339]
[1739427361067,0.26754137,96533.0,96532.0,3.14215339]
[1739427361586,0.26854137,96533.0,96532.0,3.14215339]
[1739427361930,0.26754137,96533.0,96532.0,3.14215339]
[1739427363204,0.26854137,96533.0,96532.0,3.14215339]
[1739427363546,0.26754137,96533.0,96532.0,3.14215339]
[1739427363956,0.26854137,96533.0,96532.0,3.14215339]
[1739427364520,0.26754137,96533.0,96532.0,3.14215339]
[1739427364652,0.26854137,96533.0,96532.0,3.14215339]
[1739427365523,0.26854137,96533.0,96532.0,3.14315339]
[1739427366670,0.26854137,96533.0,96532.0,3.14215339]
[1739427366820,0.26754137,96533.0,96532.0,3.14215339]
[1739427367023,0.26854137,96533.0,96532.0,3.14315339]
[1739427367783,0.26754137,96533.0,96532.0,3.14315339]
[1739427367898,0.26854137,96533.0,96532.0,3.14315339]
[1739427368358,0.26754137,96533.0,96532.0,3.14315339]
[1739427368581,0.35134137,96533.0,96532.0,2.49568939]
[1739427368771,0.35134137,96533.0,96532.0,0.66801639]
[1739427369930,0.35134137,96533.0,96532.0,0.67001639]
[1739427370120,0.35034137,96533.0,96532.0,0.67001639]
[1739427370261,0.35234137,96533.0,96532.0,0.67001639]
[1739427370686,0.35034137,96533.0,96532.0,0.67001639]
[1739427371124,0.35334137,96533.0,96532.0,0.67101639]
[1739427372767,0.35334137,96533.0,96532.0,0.51723839]
[1739427372967,0.35334137,96533.0,96532.0,2.55010139]
[1739427373174,0.35334137,96533.0,96532.0,2.54731139]
[1739427374168,0.50334137,96533.0,96532.0,2.54731139]
[1739427374918,0.50334137,96533.0,96532.0,2.53606039]
[1739427375118,0.50334137,96533.0,96532.0,2.07929739]
[1739427375470,0.50334137,96533.0,96532.0,1.94549239]
[1739427379242,0.50334137,96533.0,96532.0,1.91581739]
[1739427379443,0.50334137,96533.0,96532.0,1.85411239]
[1739427379648,0.50334137,96533.0,96532.0,1.78911239]
[1739427380537,0.51334137,96533.0,96532.0,1.60414339]
[1739427380739,0.51334137,96533.0,96532.0,0.41364339]
[1739427380924,0.51861672,96533.0,96532.0,0.41364339]
[1739427381284,0.51861672,96533.0,96532.0,0.41264339]
[1739427381285,0.51561672,96533.0,96532.0,0.41264339]
[1739427381685,0.51861672,96533.0,96532.0,0.41164339]
[1739427382288,0.51861672,96533.0,96532.0,0.0011065]
[1739427384715,0.58763973,96533.0,96532.0,0.0011065]
[1739427384963,0.54161672,96533.0,96532.0,5e-07]
[1739427385150,0.65071672,96533.0,96532.0,5e-07]
[1739427385358,0.54161672,96533.0,96532.0,5e-07]
[1739427385730,0.391792,96530.0,96529.0,9e-07]
[1739427385932,0.51729565,96530.0,96529.0,9e-07]
[1739427386136,0.52674549,96530.0,96529.0,9e-07]
[1739427386561,0.53674549,96530.0,96529.0,9e-07]
[1739427386934,0.54774549,96530.0,96529.0,9e-07]
[1739427387183,0.54874549,96530.0,96529.0,9e-07]
[1739427388513,0.87674549,96530.0,96529.0,9e-07]
[1739427392272,0.86674549,96530.0,96529.0,9e-07]
[1739427393196,0.97924914,96530.0,96529.0,9e-07]
[1739427393697,1.03468773,96530.0,96529.0,9e-07]
[1739427395057,1.03468773,96530.0,96529.0,4e-07]
[1739427395234,1.03491139,96530.0,96529.0,4e-07]
[1739427395638,0.93240774,96530.0,96529.0,4e-07]
[1739427397986,0.90880774,96530.0,96529.0,4e-07]
[1739427398341,0.89680774,96530.0,96529.0,4e-07]
[1739427398779,0.89780774,96530.0,96529.0,0.0010004]
[1739427400879,0.91280774,96530.0,96529.0,0.0020004]
[1739427401441,0.91280774,96530.0,96529.0,4e-07]
[1739427406760,0.91280774,96530.0,96529.0,9e-07]
[1739427418970,0.83640774,96530.0,96529.0,9e-07]
[1739427437061,0.83640774,96530.0,96517.0,9e-07]
[1739427437062,0.305411,96518.0,96517.0,9e-07]
[1739427437265,0.43975324,96518.0,96517.0,9e-07]
[1739427437478,0.44916818,96518.0,96517.0,9e-07]
[1739427437970,0.45456245,96518.0,96517.0,9e-07]
[1739427438285,0.47056245,96518.0,96517.0,9e-07]
[1739427438432,0.65997041,96518.0,96517.0,9e-07]
[1739427440602,0.56526643,96518.0,96517.0,9e-07]
[1739427440900,0.5754976,96518.0,96517.0,9e-07]
[1739427441517,0.59603967,96518.0,96517.0,9e-07]
[1739427442246,0.59603967,96518.0,96517.0,0.0001075]
[1739427442491,0.50133569,96518.0,96517.0,0.0001075]
[1739427451348,0.60383934,96518.0,96517.0,0.0001075]
[1739427451712,0.50133569,96518.0,96517.0,0.0001075]
[1739427452167,0.305425,96509.0,96507.0,0.0468]
[1739427452359,0.40792865,96509.0,96507.0,0.0468]
[1739427452558,0.44917652,96509.0,96508.0,0.85772164]
[1739427452705,0.44917652,96509.0,96508.0,0.774848]
[1739427453361,0.45617652,96509.0,96508.0,0.418683]
[1739427456333,0.45617652,96509.0,96508.0,0.119295]
[1739427456535,0.45617652,96509.0,96508.0,0.001]
[1739427459184,0.45617652,96509.0,96508.0,0.24939]
[1739427465947,0.45617652,96509.0,96508.0,0.2494966]
[1739427469479,0.45617652,96509.0,96508.0,0.25980536]
[1739427479425,0.01640928,96509.0,96508.0,0.38720536]
[1739427479858,0.17183428,96509.0,96508.0,0.38720536]
[1739427480065,0.01640928,96509.0,96508.0,0.38720536]
[1739427480267,0.17183428,96509.0,96508.0,0.38720536]
[1739427480620,0.17083428,96509.0,96508.0,0.38720536]
[1739427480825,0.16483428,96509.0,96508.0,0.38620536]
[1739427481254,0.00940928,96509.0,96508.0,0.38620536]
[1739427481508,0.00940928,96509.0,96508.0,0.54163236]
[1739427481795,0.002,96509.0,96508.0,0.38620536]
[1739427482001,0.002,96509.0,96508.0,0.38720536]
[1739427482204,0.00916191,96509.0,96508.0,0.38720536]
[1739427482415,0.002,96509.0,96508.0,0.3768966]
[1739427482831,0.002,96509.0,96508.0,0.3758966]
[1739427482997,0.00916191,96509.0,96508.0,0.3768966]
[1739427483196,0.002,96509.0,96508.0,0.3768966]
[1739427483575,0.002,96509.0,96508.0,0.5323236]
[1739427483777,0.155417,96514.0,96508.0,0.5265236]
[1739427483908,0.155417,96514.0,96510.0,0.1216]
[1739427484114,0.155417,96514.0,96512.0,0.1216]
[1739427484312,0.00022387,96517.0,96516.0,0.155414]
[1739427484540,0.00022387,96517.0,96516.0,0.1313]
[1739427484739,0.00022387,96517.0,96516.0,5.1813]
[1739427485199,0.00022387,96517.0,96516.0,3.95103]
[1739427485557,0.00022387,96517.0,96516.0,3.417475]
[1739427485768,0.15563687,96517.0,96516.0,2.966203]
[1739427485965,0.15563687,96517.0,96516.0,2.94658]
[1739427486166,0.15663687,96517.0,96516.0,2.94658]
[1739427486848,0.16363687,96517.0,96516.0,2.94758]
[1739427487261,0.16263687,96517.0,96516.0,2.94758]
[1739427487447,0.15563687,96517.0,96516.0,2.94658]
[1739427487688,0.15863687,96517.0,96516.0,2.94658]
[1739427488303,0.00322387,96517.0,96516.0,2.94658]
[1739427488435,0.00322387,96517.0,96516.0,3.101994]
[1739427488849,0.00322387,96517.0,96516.0,0.286714]
[1739427489049,0.00322387,96517.0,96516.0,4.932151]
[1739427489252,0.00022387,96517.0,96516.0,5.236626]
[1739427489552,0.00022387,96517.0,96516.0,5.238626]
[1739427490426,0.00022387,96517.0,96516.0,5.083212]
[1739427490655,0.00022387,96517.0,96516.0,5.084212]
[1739427491102,0.00022387,96517.0,96516.0,5.083212]
[1739427491272,0.15563687,96517.0,96516.0,3.628673]
[1739427491502,0.15563687,96517.0,96516.0,3.629673]
[1739427491914,0.15563687,96517.0,96516.0,3.46844]
[1739427498556,0.15563687,96517.0,96516.0,3.37001]
[1739427499024,0.25814052,96517.0,96516.0,3.37001]
[1739427499259,0.25814052,96517.0,96516.0,2.283458]
[1739427499467,0.25814052,96517.0,96516.0,2.221785]
[1739427499618,0.26533228,96517.0,96516.0,2.221785]
[1739427499840,0.26533228,96517.0,96516.0,2.220785]
[1739427500023,0.26533228,96517.0,96516.0,2.218785]
[1739427500202,0.26533228,96517.0,96516.0,2.219785]
[1739427501006,0.26733228,96517.0,96516.0,2.219785]
[1739427501187,0.26733228,96517.0,96516.0,2.218785]
[1739427501425,0.27433228,96517.0,96516.0,1.892785]
[1739427502111,0.17182863,96517.0,96516.0,1.892785]
[1739427502455,0.17182863,96517.0,96516.0,1.8928916]
[1739427503372,0.17182863,96517.0,96516.0,0.0504066]
[1739427503785,0.17182863,96517.0,96516.0,0.0524066]
[1739427503979,0.16282863,96517.0,96516.0,0.0514066]
[1739427504183,0.15563687,96517.0,96516.0,0.0514066]
[1739427504388,0.00322387,96517.0,96516.0,0.0514066]
[1739427504755,0.00022387,96517.0,96516.0,0.0514066]
[1739427504956,0.15563687,96517.0,96516.0,4.5732346]
[1739427505163,0.15563687,96517.0,96516.0,4.5512096]
[1739427505363,0.00022387,96517.0,96516.0,4.6263096]
[1739427506205,0.00022387,96517.0,96516.0,4.7817236]
[1739427506635,0.00022387,96517.0,96516.0,4.6263096]
[1739427506836,0.00022387,96517.0,96516.0,4.7817236]
[1739427506991,0.00022387,96517.0,96516.0,4.6263096]
[1739427507192,0.00022387,96517.0,96516.0,4.9533096]
[1739427509398,0.15563687,96517.0,96516.0,4.9533096]
[1739427509517,0.15563687,96517.0,96516.0,4.9523096]
[1739427509924,0.15563687,96517.0,96516.0,4.9503096]
[1739427510349,0.15563687,96517.0,96516.0,4.9533096]
[1739427514402,0.00022387,96517.0,96516.0,4.9533096]
[1739427515004,0.00022387,96517.0,96516.0,5.1087236]
[1739427515471,0.15563687,96517.0,96516.0,3.7982786]
[1739427515668,0.15563687,96517.0,96516.0,3.0531236]
[1739427515879,0.15563687,96517.0,96516.0,3.0009916]
[1739427516018,0.15563687,96517.0,96516.0,2.9999916]
[1739427516213,0.15563687,96517.0,96516.0,2.9228916]
[1739427516413,0.15663687,96517.0,96516.0,2.4466246]
[1739427516618,0.15663687,96517.0,96516.0,2.4516246]
[1739427516875,0.16283076,96517.0,96516.0,2.4416246]
[1739427517400,0.16383076,96517.0,96516.0,2.4456246]
[1739427517609,0.16383076,96517.0,96516.0,2.4366246]
[1739427517610,0.16283076,96517.0,96516.0,2.4366246]
[1739427517788,0.16283076,96517.0,96516.0,2.4386246]
[1739427517991,0.16283076,96517.0,96516.0,2.4406246]
[1739427529685,0.00741776,96517.0,96516.0,2.5652246]
[1739427529893,0.00022387,96517.0,96516.0,2.7206386]
[1739427530522,0.00022387,96517.0,96516.0,2.82314225]
[1739427530721,0.00022387,96517.0,96516.0,3.54264225]
[1739427531083,0.00022387,96517.0,96516.0,5.81733325]
[1739427531268,0.00022387,96518.0,96517.0,0.456213]
[1739427531504,0.00022387,96518.0,96517.0,5.24327941]
[1739427531895,0.00022387,96518.0,96517.0,5.25380014]
[1739427533239,0.00122387,96518.0,96517.0,5.26480014]
[1739427533880,0.00122387,96518.0,96517.0,5.78284014]
[1739427534064,0.00122387,96518.0,96517.0,5.78984014]
[1739427534499,0.00022387,96518.0,96517.0,5.77884014]
[1739427534639,0.00022387,96518.0,96517.0,5.40152814]
[1739427534846,0.00122387,96518.0,96517.0,5.40152814]
[1739427535278,0.00122387,96518.0,96517.0,5.36747314]
[1739427535482,0.00122387,96518.0,96517.0,5.34684514]
[1739427538572,0.00122387,96518.0,96517.0,5.24815714]
[1739427539943,0.00122387,96518.0,96517.0,6.12165714]
[1739427540447,0.00122387,96518.0,96517.0,6.11465714]
[1739427540659,0.00022387,96518.0,96517.0,6.10765714]
[1739427540860,0.00122387,96518.0,96517.0,6.11965714]
[1739427541216,0.00122387,96518.0,96517.0,5.87855014]
[1739427543487,0.00122387,96518.0,96517.0,1.99008614]
[1739427543795,0.00122387,96518.0,96517.0,6.48994714]
[1739427545375,0.00122387,96518.0,96517.0,6.25952314]
[1739427545616,0.00122387,96518.0,96517.0,6.14349414]
[1739427546030,0.00122387,96518.0,96517.0,6.16335314]
[1739427546248,0.00122387,96518.0,96517.0,7.56335314]
[1739427546480,0.00122387,96518.0,96517.0,7.66335314]
[1739427546627,0.00122387,96518.0,96517.0,7.42302814]
[1739427546845,0.00122387,96518.0,96517.0,4.67971414]
[1739427547181,0.00122387,96518.0,96517.0,4.70408114]
[1739427547373,0.00122387,96518.0,96517.0,4.70418764]
[1739427550781,0.00122387,96518.0,96517.0,6.20418764]
[1739427556473,0.00122387,96518.0,96517.0,4.63794764]
[1739427557707,0.00122387,96518.0,96517.0,3.76444764]
[1739427557917,0.00122387,96518.0,96517.0,4.31094764]
[1739427559650,0.00122387,96518.0,96517.0,3.76444764]
[1739427560326,0.00122387,96518.0,96517.0,5.26444764]
[1739427561908,0.00122387,96518.0,96517.0,5.25413888]
[1739427562130,0.00122387,96518.0,96517.0,5.14361815]
[1739427562325,0.00122387,96518.0,96517.0,5.10182815]
[1739427562671,0.00122387,96518.0,96517.0,5.06692315]
[1739427562900,0.00122387,96518.0,96517.0,4.98870715]
[1739427563745,0.00122387,96518.0,96517.0,5.53520715]
[1739427563950,0.00122387,96518.0,96517.0,5.43520715]
[1739427564189,0.00122387,96518.0,96517.0,5.53520715]
[1739427567539,0.00122387,96518.0,96517.0,4.03520715]
[1739427567746,0.15663487,96518.0,96517.0,3.0987695]
[1739427568384,0.15663487,96518.0,96517.0,3.0471445]
[1739427568385,0.00122387,96518.0,96517.0,3.0471445]
[1739427568586,0.00122387,96518.0,96517.0,2.9618075]
[1739427568977,0.00022387,96518.0,96517.0,2.9498075]
[1739427569191,0.00122387,96518.0,96517.0,2.9618075]
[1739427569422,0.00122387,96518.0,96517.0,2.9548075]
[1739427569762,0.00122387,96518.0,96517.0,2.9618075]
[1739427571188,0.15663487,96518.0,96517.0,2.9618075]
[1739427574531,0.16385049,96518.0,96517.0,2.9618075]
[1739427574944,0.16285049,96518.0,96517.0,2.9498075]
[1739427575141,0.16285049,96518.0,96517.0,2.9608075]
[1739427575344,0.15663487,96518.0,96517.0,2.9608075]
[1739427575566,0.15663487,96518.0,96517.0,2.4143075]
[1739427575749,0.15563487,96518.0,96517.0,2.3963075]
[1739427575949,0.16385049,96518.0,96517.0,2.4093075]
[1739427576965,0.16285049,96518.0,96517.0,2.4013075]
[1739427577135,0.16285049,96518.0,96517.0,2.3963075]
[1739427577476,0.16285049,96518.0,96517.0,2.4013075]
[1739427578310,0.16385049,96518.0,96517.0,2.4083075]
[1739427590491,0.16385049,96518.0,96517.0,0.5301465]
[1739427590691,0.16385049,96518.0,96517.0,3.4397515]
[1739427591168,0.15663487,96518.0,96517.0,3.4397515]
[1739427591374,0.15663487,96518.0,96517.0,3.3517395]
[1739427593696,0.15663487,96518.0,96517.0,3.2606845]
[1739427593922,0.15663487,96518.0,96517.0,3.0313595]
[1739427595115,0.15563487,96518.0,96517.0,3.0243595]
[1739427595315,0.15663487,96518.0,96517.0,3.0263595]
[1739427595517,0.15663487,96518.0,96517.0,3.0283595]
[1739427595743,0.15663487,96518.0,96517.0,3.0213595]
[1739427595952,0.15563487,96518.0,96517.0,3.0213595]
[1739427597159,0.15563487,96518.0,96517.0,3.0223595]
[1739427600002,0.48423852,96518.0,96517.0,2.9336195]
[1739427600256,0.53123852,96518.0,96517.0,1.3025315]
[1739427600457,0.53844099,96518.0,96517.0,1.3025315]
[1739427600667,0.53844099,96518.0,96517.0,1.2270635]
[1739427600905,0.53844099,96518.0,96517.0,0.9671375]
[1739427601109,0.53844099,96518.0,96517.0,0.9661375]
[1739427601308,0.54444099,96518.0,96517.0,0.9671375]
[1739427601486,0.54444099,96518.0,96517.0,0.9651375]
[1739427601687,0.54544099,96518.0,96517.0,0.9651375]
[1739427602446,0.42234099,96518.0,96517.0,0.9651375]
[1739427602620,0.31983734,96518.0,96517.0,0.9651375]
[1739427602854,0.16983734,96518.0,96517.0,0.9651375]
[1739427603059,0.01442634,96518.0,96517.0,0.9651375]
[1739427603262,0.16983734,96518.0,96517.0,0.9651375]
[1739427603881,0.16383734,96518.0,96517.0,0.9641375]
[1739427604476,0.16283734,96518.0,96517.0,0.9641375]
[1739427604930,0.16283734,96518.0,96517.0,0.9651375]
[1739427608394,0.24113734,96518.0,96517.0,0.9651375]
[1739427608968,0.34364099,96518.0,96517.0,0.9651375]
[1739427609124,0.34364099,96518.0,96517.0,0.9641375]
[1739427609524,0.34364099,96518.0,96517.0,0.5181465]
[1739427609733,0.34364099,96518.0,96517.0,3.4158335]
[1739427609911,0.34664099,96518.0,96517.0,3.4158335]
[1739427610121,0.26834099,96518.0,96517.0,3.0789125]
[1739427610521,0.26113852,96518.0,96517.0,3.0789125]
[1739427610910,0.25813852,96518.0,96517.0,3.0789125]
[1739427611363,0.25913852,96518.0,96517.0,3.0799125]
[1739427612167,0.25913852,96518.0,96517.0,3.0789125]
[1739427612617,0.25813852,96518.0,96517.0,3.0799125]
[1739427613084,0.26013852,96518.0,96517.0,3.0799125]
[1739427613868,0.15763487,96518.0,96517.0,3.0799125]
[1739427615721,0.15763487,96518.0,96517.0,2.6177615]
[1739427616535,0.15763487,96518.0,96517.0,2.2958855]
[1739427616753,0.16483013,96518.0,96517.0,2.2958855]
[1739427620306,0.26733378,96518.0,96517.0,2.0660145]
[1739427625295,0.16483013,96518.0,96517.0,2.0660145]
[1739427627662,0.00941913,96518.0,96517.0,2.0660145]
[1739427628088,0.15763487,96518.0,96517.0,2.0660145]
[1739427628448,0.16482096,96518.0,96517.0,2.0660145]
[1739427629014,0.16482096,96518.0,96517.0,0.5191465]
[1739427629254,0.16482096,96518.0,96517.0,4.2414565]
[1739427629884,0.15763487,96518.0,96517.0,4.2414565]
[1739427634659,0.00222387,96518.0,96517.0,4.2414565]
[1739427636062,0.00222387,96518.0,96517.0,4.3219285]
[1739427636862,0.00222387,96518.0,96517.0,4.4475285]
[1739427637415,0.00222387,96518.0,96517.0,4.7745285]
[1739427638116,0.00022387,96518.0,96517.0,4.7745285]
[1739427638409,0.00022387,96518.0,96517.0,4.7735285]
[1739427638610,0.00022387,96518.0,96517.0,4.6334235]
[1739427638944,0.00022387,96518.0,96517.0,4.6344235]
[1739427643460,0.00022387,96518.0,96517.0,4.4790105]